fUST/lending_fUST_20260504
["ID","MTS","AMOUNT","RATE_DAILY","PERIOD"]
[421572398,1777899043000,-1628.46449271,8.261e-05,2]
[421572401,1777899043000,-114.34458723,8.344e-05,2]
[421572399,1777899043000,-536.0,8.261e-05,2]
[421572427,1777899043000,-300.0,8.599e-05,2]
[421572429,1777899043000,-7449.69032463,8.6e-05,2]
[421572423,1777899043000,-1783.42137156,8.344e-05,2]
[421572425,1777899043000,-277.46930703,8.471e-05,2]
[421572454,1777899046000,-15776.5,8.6e-05,2]
[421572455,1777899046000,-2585.94242598,8.6e-05,2]
[421572460,1777899303000,1444.0,0.00020329,120]
[421572461,1777899455000,5000.0,8.01e-05,2]
[421572462,1777899586000,641.72,0.0002191,120]
[421572463,1777899635000,-5000.0,8.114e-05,2]
[421572464,1777899654000,-277.36971793,8.237e-05,2]
[421572465,1777899672000,-151.0,8.362e-05,2]
[421572466,1777899690000,-537.0,8.362e-05,2]
[421572467,1777899708000,-300.0,8.599e-05,2]
[421572468,1777899726000,-300.0,8.599e-05,2]
[421572469,1777899744000,-6471.77724939,8.6e-05,2]
[421572470,1777899761000,-541.0,8.6e-05,2]
[421572517,1777900090000,1444.0,0.00020329,120]
[421572551,1777900232000,-300.0,9.556e-05,2]
[421572589,1777900232000,-169.11835421,9.558e-05,2]
[421572582,1777900232000,-397.93983551,9.558e-05,2]
[421572584,1777900232000,-243.79551401,9.558e-05,2]
[421572568,1777900232000,-326.25688622,9.558e-05,2]
[421572553,1777900232000,-293.32797243,9.558e-05,2]
[421572549,1777900232000,-9011.087574,9.425e-05,2]
[421572556,1777900232000,-500.0,9.558e-05,2]
[421572560,1777900232000,-500.0,9.558e-05,2]
[421572562,1777900232000,-500.0,9.558e-05,2]
[421572564,1777900232000,-500.0,9.558e-05,2]
[421572545,1777900232000,-271.82232357,8.918e-05,2]
[421572558,1777900232000,-500.0,9.558e-05,2]
[421572570,1777900232000,-500.0,9.558e-05,2]
[421572547,1777900232000,-160.0,8.957e-05,2]
[421572572,1777900232000,-500.0,9.558e-05,2]
[421572542,1777900232000,-545.0,8.918e-05,2]
[421572587,1777900232000,-566.78309503,9.558e-05,2]
[421572574,1777900232000,-500.0,9.558e-05,2]
[421572611,1777900232000,-17424.07378518,9.559e-05,2]
[421572607,1777900232000,-500.0,9.558e-05,2]
[421572605,1777900232000,-500.0,9.558e-05,2]
[421572609,1777900232000,-170.83941648,9.558e-05,2]
[421572603,1777900232000,-246.36822181,9.558e-05,2]
[421572597,1777900232000,-500.0,9.558e-05,2]
[421572599,1777900232000,-500.0,9.558e-05,2]
[421572601,1777900232000,-500.0,9.558e-05,2]
[421572595,1777900232000,-500.0,9.558e-05,2]
[421572593,1777900232000,-500.0,9.558e-05,2]
[421572591,1777900232000,-500.0,9.558e-05,2]
[421572578,1777900232000,-500.0,9.558e-05,2]
[421572576,1777900232000,-500.0,9.558e-05,2]
[421572580,1777900232000,-170.58702154,9.558e-05,2]
[421572614,1777900232000,-20450.25474901,9.559e-05,2]
[421572711,1777900238000,-98627.13055492,9.598e-05,2]
[421572710,1777900238000,-161.1003056,9.598e-05,2]
[421572709,1777900238000,-558186.17833025,9.559e-05,2]
[421572728,1777900243000,-116500.0,9.598e-05,2]
[421572747,1777900246000,-5741.70000114,9.598e-05,2]
[421572746,1777900246000,-23260.95776415,9.598e-05,2]
[421572744,1777900246000,-23636.43242977,9.598e-05,2]
[421572745,1777900246000,-3528.73342539,9.598e-05,2]
[421572766,1777900870000,1444.0,0.00020329,120]
[421572771,1777901037000,3117.76203223,8.01e-05,2]
[421572772,1777901171000,2892.98893154,0.00016664,120]
[421572773,1777901172000,2892.98893154,0.0001669,120]
[421572775,1777901173000,2892.98893154,0.00016743,120]
[421572774,1777901173000,2892.98893154,0.00016717,120]
[421572776,1777901174000,2892.98893154,0.0001677,120]
[421572777,1777901200000,5000.0,8.01e-05,2]
[421572778,1777901222000,1216.85682576,8.01e-05,2]
[421572780,1777901380000,2000.0,0.00021918,120]
[421572936,1777901438000,-534.0,8.109e-05,2]
[421572974,1777901438000,-500.0,9.55e-05,2]
[421572963,1777901438000,-804.70218769,8.691e-05,2]
[421572959,1777901438000,-500.0,8.691e-05,2]
[421572957,1777901438000,-600.0,8.434e-05,2]
[421572958,1777901438000,-500.0,8.691e-05,2]
[421572960,1777901438000,-500.0,8.691e-05,2]
[421572953,1777901438000,-300.0,8.27e-05,2]
[421572950,1777901438000,-300.0,8.27e-05,2]
[421572956,1777901438000,-300.0,8.27e-05,2]
[421572954,1777901438000,-300.0,8.27e-05,2]
[421572962,1777901438000,-500.0,8.691e-05,2]
[421572952,1777901438000,-300.0,8.27e-05,2]
[421572955,1777901438000,-300.0,8.27e-05,2]
[421572951,1777901438000,-300.0,8.27e-05,2]
[421572961,1777901438000,-500.0,8.691e-05,2]
[421572946,1777901438000,-4.15093441,8.27e-05,2]
[421572941,1777901438000,-300.0,8.27e-05,2]
[421572949,1777901438000,-300.0,8.27e-05,2]
[421572948,1777901438000,-300.0,8.27e-05,2]
[421572945,1777901438000,-300.0,8.27e-05,2]
[421572947,1777901438000,-295.84906559,8.27e-05,2]
[421572944,1777901438000,-300.0,8.27e-05,2]
[421572976,1777901438000,-205.3295807,9.55e-05,2]
[421572940,1777901438000,-1200.0,8.269e-05,2]
[421572942,1777901438000,-300.0,8.27e-05,2]
[421572939,1777901438000,-300.0,8.269e-05,2]
[421572938,1777901438000,-300.0,8.269e-05,2]
[421572937,1777901438000,-167.018395,8.191e-05,2]
[421572935,1777901438000,-271.7866782,8.109e-05,2]
[421572930,1777901438000,3463.39243192,8.01e-05,2]
[421572943,1777901438000,-300.0,8.27e-05,2]
[421572973,1777901438000,-155.0,9.539e-05,2]
[421572971,1777901438000,-210.88220395,9.439e-05,2]
[421573000,1777901438000,-412.86811371,9.552e-05,2]
[421572999,1777901438000,-525.0,9.552e-05,2]
[421572997,1777901438000,-188.54630457,9.552e-05,2]
[421572996,1777901438000,-336.45369543,9.552e-05,2]
[421572998,1777901438000,-525.0,9.552e-05,2]
[421572993,1777901438000,-525.0,9.552e-05,2]
[421572995,1777901438000,-525.0,9.552e-05,2]
[421572992,1777901438000,-525.0,9.552e-05,2]
[421572987,1777901438000,-525.0,9.552e-05,2]
[421572986,1777901438000,-525.0,9.552e-05,2]
[421572984,1777901438000,-525.0,9.552e-05,2]
[421572985,1777901438000,-525.0,9.552e-05,2]
[421572988,1777901438000,-525.0,9.552e-05,2]
[421572983,1777901438000,-21615.5885387,9.551e-05,2]
[421572982,1777901438000,-3070.6744308,9.551e-05,2]
[421572994,1777901438000,-525.0,9.552e-05,2]
[421572989,1777901438000,-525.0,9.552e-05,2]
[421572981,1777901438000,-500.0,9.55e-05,2]
[421572970,1777901438000,-471.81869131,9.439e-05,2]
[421572972,1777901438000,-95543.35670241,9.44e-05,2]
[421572964,1777901438000,-455.9187498,8.839e-05,2]
[421572968,1777901438000,-720.0,9.278e-05,2]
[421572965,1777901438000,-151.0,8.839e-05,2]
[421572977,1777901438000,-467.57526487,9.55e-05,2]
[421572966,1777901438000,-325.688714,8.849e-05,2]
[421572967,1777901438000,-420.0,9.096e-05,2]
[421572979,1777901438000,-500.0,9.55e-05,2]
[421572978,1777901438000,-500.0,9.55e-05,2]
[421572980,1777901438000,-500.0,9.55e-05,2]
[421572990,1777901438000,-525.0,9.552e-05,2]
[421572991,1777901438000,-525.0,9.552e-05,2]
[421572969,1777901438000,-360.215,9.349e-05,2]
[421573049,1777901440000,-112.13188629,9.552e-05,2]
[421573051,1777901440000,-525.0,9.552e-05,2]
[421573053,1777901441000,-213.84585041,9.552e-05,2]
[421573140,1777901443000,-311.15414959,9.552e-05,2]
[421573143,1777901443000,-525.0,9.552e-05,2]
[421573142,1777901443000,-525.0,9.552e-05,2]
[421573146,1777901443000,-525.0,9.552e-05,2]
[421573145,1777901443000,-283.57987448,9.552e-05,2]
[421573147,1777901443000,-525.0,9.552e-05,2]
[421573148,1777901443000,-207.77540289,9.552e-05,2]
[421573144,1777901443000,-241.42012552,9.552e-05,2]
[421573158,1777901446000,-500.0,9.552e-05,2]
[421573159,1777901446000,-500.0,9.598e-05,2]
[421573162,1777901446000,-3458.64472263,9.659e-05,2]
[421573161,1777901446000,-9163.43790201,9.659e-05,2]
[421573160,1777901446000,-152.0,9.643e-05,7]
[421573157,1777901446000,-324.07280774,9.552e-05,2]
[421573163,1777901447000,-7890.29803111,9.659e-05,2]
[421573164,1777901454000,1767.07218853,7.6e-05,2]
[421573167,1777901650000,1444.0,0.00020329,120]
[421573169,1777901791000,15153.0,0.00021917,120]
[421573170,1777902430000,1444.0,0.00020329,120]
[421573186,1777902609000,5000.0,8.01e-05,2]
[421573249,1777902638000,-241.29602831,9.239e-05,2]
[421573244,1777902638000,-456.2076372,8.027e-05,2]
[421573247,1777902638000,-151.0,8.844e-05,2]
[421573245,1777902638000,-533.0,8.027e-05,2]
[421573246,1777902638000,-271.7403311,8.497e-05,2]
[421573248,1777902638000,-500.0,9.239e-05,2]
[421573252,1777902638000,-500.0,9.239e-05,2]
[421573262,1777902638000,-12058.0,9.24e-05,2]
[421573253,1777902638000,-500.0,9.239e-05,2]
[421573250,1777902638000,-500.0,9.239e-05,2]
[421573254,1777902638000,-521.6073474,9.239e-05,2]
[421573264,1777902638000,-161404.65526963,9.24e-05,2]
[421573261,1777902638000,-57509.86439088,9.24e-05,2]
[421573258,1777902638000,-500.0,9.239e-05,2]
[421573255,1777902638000,-500.0,9.239e-05,2]
[421573263,1777902638000,-3743.7877619,9.24e-05,2]
[421573256,1777902638000,-500.0,9.239e-05,2]
[421573259,1777902638000,-500.0,9.239e-05,2]
[421573260,1777902638000,-500.0,9.239e-05,2]
[421573257,1777902638000,-500.0,9.239e-05,2]
[421573251,1777902638000,-577.3026854,9.239e-05,2]
[421573297,1777902643000,-1482.49106229,9.24e-05,2]
[421573399,1777902646000,-4920.53261033,9.24e-05,2]
[421573402,1777902647000,-46466.93472065,9.24e-05,2]
[421573427,1777903209000,1444.0,0.00020329,120]
[421573428,1777903254000,-236.96088873,8.697e-05,2]
[421573429,1777903273000,-2604.03911127,8.61e-05,2]
[421573430,1777903296000,-236.96088873,8.61e-05,2]
[421573431,1777903313000,-2159.0,8.61e-05,2]
[421573432,1777903331000,-331.49794405,8.697e-05,2]
[421573433,1777903349000,-542.0,8.697e-05,2]
[421573434,1777903366000,-288.172,8.957e-05,2]
[421573607,1777903833000,-1843.19312391,9.139e-05,2]
[421573606,1777903833000,-300.0,9.138e-05,2]
[421573605,1777903833000,-562.0,8.946e-05,2]
[421573602,1777903833000,-300.0,8.945e-05,2]
[421573604,1777903833000,-1200.0,8.945e-05,2]
[421573603,1777903833000,-300.0,8.945e-05,2]
[421573601,1777903833000,-300.0,8.945e-05,2]
[421573599,1777903833000,-544.0,8.857e-05,2]
[421573600,1777903833000,-271.65730009,8.902e-05,2]
[421573598,1777903833000,-2728.97546332,8.768e-05,2]
[421573594,1777903833000,-2271.02453668,8.768e-05,2]
[421573612,1777903841000,-239.9432206,9.257e-05,2]
[421573610,1777903841000,-155.0,9.139e-05,2]
[421573613,1777903841000,-152.0,9.431e-05,7]
[421573611,1777903841000,-500.0,9.213e-05,2]
[421573614,1777903841000,-152.0,9.434e-05,7]
[421573617,1777903841000,-4439.3723854,9.458e-05,2]
[421573615,1777903841000,-152.0,9.434e-05,7]
[421573616,1777903841000,-152.0,9.437e-05,7]
[421573629,1777903842000,-59733.94450188,9.458e-05,2]
[421573628,1777903842000,-1864.11663286,9.458e-05,2]
[421573646,1777903844000,-1352.99176546,9.458e-05,2]
[421573652,1777903847000,-22309.32889199,9.458e-05,2]
[421573651,1777903847000,-3938.45,9.458e-05,2]
[421573655,1777903916000,-4988.172,9.364e-05,2]
[421573656,1777903916000,-551.0,9.364e-05,2]
[421573654,1777903916000,-11.828,9.364e-05,2]
[421573653,1777903916000,-288.172,9.269e-05,2]
[421573657,1777903916000,-300.0,9.457e-05,2]
[421573658,1777903922000,160.35777336,8.958e-05,2]
[421573659,1777903926000,300.0,9.457e-05,2]
[421573660,1777903935000,600.47022664,9.458e-05,2]
[421573661,1777903971000,11.828,9.354e-05,2]
[421573662,1777903988000,535.46741164,0.00020329,120]
[421573663,1777904126000,288.172,9.269e-05,2]
[421573679,1777905021000,25000.0,0.000219,120]
[421573837,1777905041000,-8772.07151056,9.15e-05,2]
[421573840,1777905041000,-33513.27752019,9.153e-05,2]
[421573842,1777905041000,-19228.92682188,9.153e-05,2]
[421573849,1777905041000,-1085.93722784,9.153e-05,2]
[421573851,1777905041000,-1085.93722784,9.153e-05,2]
[421573852,1777905041000,-1085.93722784,9.153e-05,2]
[421573850,1777905041000,-1085.93722784,9.153e-05,2]
[421573853,1777905041000,-1085.93722784,9.153e-05,2]
[421573858,1777905041000,-1085.93722784,9.153e-05,2]
[421573861,1777905041000,-1113.08565854,9.153e-05,2]
[421573855,1777905041000,-1085.93722784,9.153e-05,2]
[421573859,1777905041000,-1113.08565854,9.153e-05,2]
[421573841,1777905041000,-500.0,9.153e-05,2]
[421573854,1777905041000,-1085.93722784,9.153e-05,2]
[421573839,1777905041000,-300.0,9.152e-05,2]
[421573836,1777905041000,-315.975,9.069e-05,2]
[421573847,1777905041000,-1085.93722784,9.153e-05,2]
[421573848,1777905041000,-1085.93722784,9.153e-05,2]
[421573844,1777905041000,-326.35105945,9.153e-05,2]
[421573843,1777905041000,-1085.93722784,9.153e-05,2]
[421573838,1777905041000,-66713.15978438,9.15e-05,2]
[421573835,1777905041000,-1680.0,9.059e-05,2]
[421573834,1777905041000,-300.0,8.707e-05,2]
[421573833,1777905041000,-240.0,8.707e-05,2]
[421573856,1777905041000,-1085.93722784,9.153e-05,2]
[421573832,1777905041000,-280.29495476,8.237e-05,2]
[421573831,1777905041000,-1200.0,8.236e-05,2]
[421573830,1777905041000,-4062.78282906,8.195e-05,2]
[421573828,1777905041000,-1424.4092725,8.113e-05,2]
[421573829,1777905041000,-534.0,8.113e-05,2]
[421573846,1777905041000,-1085.93722784,9.153e-05,2]
[421573860,1777905041000,-1113.08565854,9.153e-05,2]
[421573845,1777905041000,-1085.93722784,9.153e-05,2]
[421573863,1777905041000,-1113.08565854,9.153e-05,2]
[421573857,1777905041000,-1085.93722784,9.153e-05,2]
[421573891,1777905041000,-500.0,9.333e-05,2]
[421573893,1777905041000,-500.0,9.333e-05,2]
[421573890,1777905041000,-500.0,9.333e-05,2]
[421573888,1777905041000,-500.0,9.333e-05,2]
[421573889,1777905041000,-500.0,9.333e-05,2]
[421573883,1777905041000,-557.5788265,9.303e-05,2]
[421573880,1777905041000,-162.380719,9.248e-05,2]
[421573878,1777905041000,-537.6845,9.248e-05,2]
[421573884,1777905041000,-4634.4462817,9.306e-05,2]
[421573881,1777905041000,-151.5,9.278e-05,2]
[421573879,1777905041000,-181.09909446,9.248e-05,2]
[421573882,1777905041000,-167.12318646,9.278e-05,2]
[421573885,1777905041000,-500.0,9.333e-05,2]
[421573886,1777905041000,-500.0,9.333e-05,2]
[421573892,1777905041000,-500.0,9.333e-05,2]
[421573887,1777905041000,-500.0,9.333e-05,2]
[421573876,1777905041000,-202.80830008,9.248e-05,2]
[421573873,1777905041000,-1440.09911472,9.159e-05,2]
[421573875,1777905041000,-537.6845,9.248e-05,2]
[421573864,1777905041000,-1113.08565854,9.153e-05,2]
[421573870,1777905041000,-1134.1959038,9.153e-05,2]
[421573862,1777905041000,-1113.08565854,9.153e-05,2]
[421573869,1777905041000,-1113.08565854,9.153e-05,2]
[421573874,1777905041000,-445.202766,9.248e-05,2]
[421573867,1777905041000,-1113.08565854,9.153e-05,2]
[421573865,1777905041000,-1113.08565854,9.153e-05,2]
[421573868,1777905041000,-1113.08565854,9.153e-05,2]
[421573871,1777905041000,-1134.1959038,9.153e-05,2]
[421573877,1777905041000,-151.0,9.248e-05,2]
[421573866,1777905041000,-1113.08565854,9.153e-05,2]
[421573872,1777905041000,-888512.23950436,9.154e-05,2]
[421573944,1777905042000,-1000.0,9.881e-05,2]
[421573945,1777905042000,-1000.0,9.881e-05,2]
[421573941,1777905042000,-1000.0,9.881e-05,2]
[421573937,1777905042000,-801.85129955,9.853e-05,2]
[421573940,1777905042000,-1000.0,9.881e-05,2]
[421573933,1777905042000,-557.5788265,9.796e-05,2]
[421573939,1777905042000,-1000.0,9.881e-05,2]
[421573943,1777905042000,-500.4724056,9.881e-05,2]
[421573935,1777905042000,-773.2413689,9.798e-05,2]
[421573947,1777905042000,-921.92035392,9.881e-05,2]
[421573931,1777905042000,-461.67526834,9.796e-05,2]
[421573942,1777905042000,-1000.0,9.881e-05,2]
[421573932,1777905042000,-151.0,9.796e-05,2]
[421573953,1777905042000,-831.51979763,9.908e-05,2]
[421573949,1777905042000,-1000.0,9.881e-05,2]
[421573950,1777905042000,-1000.0,9.881e-05,2]
[421573958,1777905042000,-1903.0,0.0001,2]
[421573957,1777905042000,-500.0,9.975e-05,2]
[421573951,1777905042000,-1000.0,9.881e-05,2]
[421573948,1777905042000,-1000.0,9.881e-05,2]
[421573959,1777905042000,-32834.47245189,0.0001,2]
[421573955,1777905042000,-862.28603014,9.963e-05,2]
[421573956,1777905042000,-1680.0,9.965e-05,2]
[421573961,1777905042000,-322.4611154,0.0001,2]
[421573960,1777905042000,-3253.89621998,0.0001,2]
[421573962,1777905042000,-151.0,0.0001,2]
[421573924,1777905042000,-151.0,9.659e-05,2]
[421573963,1777905042000,-151.0,0.0001,2]
[421573946,1777905042000,-1000.0,9.881e-05,2]
[421573926,1777905042000,-505.20824729,9.659e-05,2]
[421573913,1777905042000,-152.0,9.503e-05,7]
[421573923,1777905042000,-288.360296,9.659e-05,2]
[421573964,1777905042000,-151.0,0.0001,2]
[421573899,1777905042000,-500.0,9.333e-05,2]
[421573902,1777905042000,-151.0,9.354e-05,2]
[421573901,1777905042000,-666160.5537888,9.354e-05,2]
[421573894,1777905042000,-500.0,9.333e-05,2]
[421573895,1777905042000,-500.0,9.333e-05,2]
[421573897,1777905042000,-500.0,9.333e-05,2]
[421573904,1777905042000,-578.20924308,9.358e-05,2]
[421573908,1777905042000,-200.0,9.5e-05,2]
[421573905,1777905042000,-599.60298507,9.413e-05,2]
[421573915,1777905042000,-152.0,9.513e-05,7]
[421573916,1777905042000,-644.79446246,9.523e-05,2]
[421573906,1777905042000,-500.0,9.427e-05,2]
[421573930,1777905042000,-745.65223616,9.743e-05,2]
[421573907,1777905042000,-621.78829552,9.468e-05,2]
[421573910,1777905042000,-152.0,9.501e-05,7]
[421573914,1777905042000,-152.0,9.503e-05,7]
[421573912,1777905042000,-152.0,9.501e-05,7]
[421573911,1777905042000,-152.0,9.501e-05,7]
[421573917,1777905042000,-600.0,9.54e-05,2]
[421573928,1777905042000,-793.0,9.7e-05,2]
[421573919,1777905042000,-668.65185757,9.578e-05,2]
[421573920,1777905042000,-693.3919763,9.633e-05,2]
[421573918,1777905042000,-420.0,9.578e-05,2]
[421573921,1777905042000,-151.0,9.659e-05,2]
[421573929,1777905042000,-500.0,9.701e-05,2]
[421573922,1777905042000,-151.0,9.659e-05,2]
[421573927,1777905042000,-719.04747942,9.688e-05,2]
[421573909,1777905042000,-152.0,9.501e-05,7]
[421573977,1777905042000,-162.56337256,0.0001,2]
[421573898,1777905042000,-609.11879508,9.333e-05,2]
[421573975,1777905042000,-288.82423172,0.0001,2]
[421574010,1777905042000,-151.0,0.00010076,2]
[421574005,1777905042000,-2000.0,0.00010059,2]
[421574003,1777905042000,-2000.0,0.00010059,2]
[421574004,1777905042000,-2000.0,0.00010059,2]
[421574013,1777905042000,-2000.0,0.00010092,2]
[421574017,1777905042000,-2000.0,0.00010092,2]
[421574018,1777905042000,-2000.0,0.00010092,2]
[421574012,1777905042000,-2000.0,0.00010092,2]
[421574014,1777905042000,-2000.0,0.00010092,2]
[421574019,1777905042000,-2000.0,0.00010092,2]
[421574015,1777905042000,-2000.0,0.00010092,2]
[421574016,1777905042000,-2000.0,0.00010092,2]
[421574020,1777905042000,-2000.0,0.00010092,2]
[421574011,1777905042000,-2000.0,0.00010092,2]
[421574021,1777905042000,-2000.0,0.00010092,2]
[421574022,1777905042000,-2000.0,0.00010092,2]
[421574024,1777905042000,-2000.0,0.00010092,2]
[421574030,1777905042000,-2000.0,0.00010092,2]
[421574025,1777905042000,-2000.0,0.00010092,2]
[421574031,1777905042000,-2000.0,0.00010092,2]
[421574032,1777905042000,-961.58486559,0.00010128,2]
[421574033,1777905042000,-3785.49579849,0.00010139,2]
[421574029,1777905042000,-2000.0,0.00010092,2]
[421574027,1777905042000,-2000.0,0.00010092,2]
[421574034,1777905042000,-2000.0,0.0001014,2]
[421574036,1777905042000,-2000.0,0.0001014,2]
[421574037,1777905042000,-2000.0,0.0001014,2]
[421573976,1777905042000,-298.81627361,0.0001,2]
[421574023,1777905042000,-2000.0,0.00010092,2]
[421574002,1777905042000,-2000.0,0.00010059,2]
[421574035,1777905042000,-2000.0,0.0001014,2]
[421574008,1777905042000,-2000.0,0.00010059,2]
[421574009,1777905042000,-927.27566595,0.00010073,2]
[421573965,1777905042000,-2005.30929539,0.0001,2]
[421573966,1777905042000,-5226.83629227,0.0001,2]
[421573972,1777905042000,-156.11091195,0.0001,2]
[421573973,1777905042000,-196.49399792,0.0001,2]
[421573969,1777905042000,-4757.03224676,0.0001,2]
[421573971,1777905042000,-155.0852439,0.0001,2]
[421573974,1777905042000,-272.34862211,0.0001,2]
[421573967,1777905042000,-4901.14167096,0.0001,2]
[421573968,1777905042000,-4287.22820136,0.0001,2]
[421573989,1777905042000,-2000.0,0.00010059,2]
[421573978,1777905042000,-190.24075461,0.0001,2]
[421573980,1777905042000,-187.6115777,0.0001,2]
[421573992,1777905042000,-2000.0,0.00010059,2]
[421573970,1777905042000,-151.92354353,0.0001,2]
[421573991,1777905042000,-2000.0,0.00010059,2]
[421574001,1777905042000,-2000.0,0.00010059,2]
[421573981,1777905042000,-183.15565411,0.0001,2]
[421574006,1777905042000,-2000.0,0.00010059,2]
[421574000,1777905042000,-2000.0,0.00010059,2]
[421573998,1777905042000,-2000.0,0.00010059,2]
[421573985,1777905042000,-155.0,0.00010053,2]
[421573999,1777905042000,-2000.0,0.00010059,2]
[421573995,1777905042000,-2000.0,0.00010059,2]
[421573993,1777905042000,-2000.0,0.00010059,2]
[421573987,1777905042000,-2000.0,0.00010059,2]
[421573994,1777905042000,-2000.0,0.00010059,2]
[421574007,1777905042000,-2000.0,0.00010059,2]
[421573983,1777905042000,-894.19061326,0.00010018,2]
[421573996,1777905042000,-2000.0,0.00010059,2]
[421574077,1777905043000,-578.20924308,0.00010344,2]
[421574068,1777905043000,-2000.0,0.00010276,2]
[421574071,1777905043000,-2000.0,0.00010276,2]
[421574070,1777905043000,-2000.0,0.00010276,2]
[421574063,1777905043000,-2000.0,0.00010276,2]
[421574085,1777905043000,-2000.0,0.00010411,2]
[421574084,1777905043000,-2000.0,0.00010411,2]
[421574086,1777905043000,-2000.0,0.00010411,2]
[421574073,1777905043000,-650.845,0.00010341,2]
[421574078,1777905043000,-250.0,0.00010354,2]
[421574067,1777905043000,-2000.0,0.00010276,2]
[421574074,1777905043000,-1411.0,0.00010341,2]
[421574076,1777905043000,-174.73012077,0.00010344,2]
[421574081,1777905043000,-2000.0,0.00010411,2]
[421574075,1777905043000,-478.75725327,0.00010344,2]
[421574079,1777905043000,-2000.0,0.00010411,2]
[421574080,1777905043000,-2000.0,0.00010411,2]
[421574087,1777905043000,-2000.0,0.00010411,2]
[421574089,1777905043000,-2000.0,0.00010411,2]
[421574093,1777905043000,-2000.0,0.00010411,2]
[421574091,1777905043000,-2000.0,0.00010411,2]
[421574090,1777905043000,-2000.0,0.00010411,2]
[421574095,1777905043000,-2000.0,0.00010411,2]
[421574064,1777905043000,-2000.0,0.00010276,2]
[421574092,1777905043000,-2000.0,0.00010411,2]
[421574083,1777905043000,-2000.0,0.00010411,2]
[421574072,1777905043000,-1242.0,0.00010276,2]
[421574050,1777905043000,-2000.0,0.0001014,2]
[421574066,1777905043000,-2000.0,0.00010276,2]
[421574097,1777905043000,-1998.0,0.00010411,2]
[421574040,1777905043000,-2000.0,0.0001014,2]
[421574044,1777905043000,-2000.0,0.0001014,2]
[421574038,1777905043000,-2000.0,0.0001014,2]
[421574045,1777905043000,-2000.0,0.0001014,2]
[421574042,1777905043000,-2000.0,0.0001014,2]
[421574041,1777905043000,-2000.0,0.0001014,2]
[421574039,1777905043000,-2000.0,0.0001014,2]
[421574046,1777905043000,-2000.0,0.0001014,2]
[421574043,1777905043000,-2000.0,0.0001014,2]
[421574048,1777905043000,-2000.0,0.0001014,2]
[421574059,1777905043000,-2000.0,0.00010276,2]
[421574062,1777905043000,-2000.0,0.00010276,2]
[421574058,1777905043000,-2000.0,0.00010276,2]
[421574047,1777905043000,-2000.0,0.0001014,2]
[421574049,1777905043000,-2000.0,0.0001014,2]
[421574052,1777905043000,-2000.0,0.0001014,2]
[421574057,1777905043000,-2000.0,0.00010276,2]
[421574053,1777905043000,-997.16350561,0.00010183,2]
[421574054,1777905043000,-330.74804662,0.00010237,2]
[421574051,1777905043000,-2000.0,0.0001014,2]
[421574055,1777905043000,-500.0,0.00010249,2]
[421574056,1777905043000,-2000.0,0.00010276,2]
[421574061,1777905043000,-2000.0,0.00010276,2]
[421574065,1777905043000,-2000.0,0.00010276,2]
[421574069,1777905043000,-2000.0,0.00010276,2]
[421574060,1777905043000,-2000.0,0.00010276,2]
[421574098,1777905043000,-1500.0,0.00010428,2]
[421574082,1777905043000,-2000.0,0.00010411,2]
[421574096,1777905043000,-2000.0,0.00010411,2]
[421574128,1777905043000,-500.0,0.00010675,2]
[421574137,1777905043000,-151.0,0.000108,2]
[421574139,1777905043000,-599.60298507,0.00010892,2]
[421574134,1777905043000,-500.0,0.000108,2]
[421574130,1777905043000,-202.77,0.00010776,2]
[421574136,1777905043000,-151.0,0.000108,2]
[421574131,1777905043000,-228.35,0.00010781,2]
[421574135,1777905043000,-500.0,0.000108,2]
[421574140,1777905043000,-500.0,0.00010959,2]
[421574133,1777905043000,-500.0,0.000108,2]
[421574138,1777905043000,-496.47127164,0.00010892,2]
[421574132,1777905043000,-500.0,0.00010797,2]
[421574124,1777905043000,-534.54202161,0.00010675,2]
[421574141,1777905043000,-199.82965716,0.00010959,2]
[421574144,1777905043000,-2000.0,0.00010976,2]
[421574145,1777905043000,-2000.0,0.00010976,2]
[421574147,1777905043000,-2000.0,0.00010976,2]
[421574142,1777905043000,-500.0,0.00010959,2]
[421574146,1777905043000,-2000.0,0.00010976,2]